fUSD/lending_fUSD_20240612
["ID","MTS","AMOUNT","RATE_DAILY","PERIOD"]
[329218595,1718185877186,-500.0,0.0002,2]
[329218596,1718185877198,-861.93,0.0002,2]
[329218597,1718185877211,-285.84410594,0.0002,2]
[329218598,1718185877223,-653.36,0.0002,2]
[329218599,1718185877235,-1513.9,0.0002,2]
[329218600,1718185877246,-1430.79,0.0002,2]
[329218601,1718185877258,-500.0,0.0002,2]
[329218602,1718185877269,-500.0,0.0002,2]
[329218603,1718185877281,-1116.87,0.0002,2]
[329218604,1718185877293,-1680.63,0.0002,2]
[329218605,1718185877305,-2401.2,0.0002,2]
[329218606,1718185877317,-500.0,0.0002,2]
[329218607,1718185877327,-500.0,0.0002,2]
[329218608,1718185877338,-500.0,0.0002,2]
[329218609,1718185877349,-562.19,0.0002,2]
[329218610,1718185877361,-1223.41,0.0002,2]
[329218611,1718185877377,-982.45,0.0002,2]
[329218612,1718185877388,-1057.64,0.0002,2]
[329218613,1718185877399,-500.0,0.0002,2]
[329218614,1718185877414,-807.87,0.0002,2]
[329218615,1718185877425,-500.0,0.0002,2]
[329218616,1718185877436,-1266.87,0.0002,2]
[329218617,1718185877448,-714.41,0.0002,2]
[329218618,1718185877460,-500.0,0.0002,2]
[329218619,1718185877472,-1245.17,0.0002,2]
[329218620,1718185877484,-624.57,0.0002,2]
[329218621,1718185877495,-500.0,0.0002,2]
[329218622,1718185877506,-500.0,0.0002,2]
[329218623,1718185877518,-1411.92,0.0002,2]
[329218624,1718185877530,-1034.01,0.0002,2]
[329218625,1718185877541,-507.19,0.0002,2]
[329218626,1718185877552,-769.32,0.0002,2]
[329218627,1718185877563,-632.86,0.0002,2]
[329218628,1718185877575,-1980.14,0.0002,2]
[329218629,1718185877586,-855.8,0.0002,2]
[329218630,1718185877596,-2845.79,0.0002,2]
[329218631,1718185877610,-500.0,0.0002,2]
[329218632,1718185877622,-658.23,0.0002,2]
[329218633,1718185877632,-500.0,0.0002,2]
[329218634,1718185877643,-500.0,0.0002,2]
[329218635,1718185877652,-500.0,0.0002,2]
[329218636,1718185877667,-500.0,0.0002,2]
[329218637,1718185877677,-856.59,0.0002,2]
[329218638,1718185877688,-906.07,0.0002,2]
[329218639,1718185877699,-736.59,0.0002,2]
[329218640,1718185877710,-771.76,0.0002,2]
[329218641,1718185877721,-1448.82,0.0002,2]
[329218642,1718185877732,-654.87,0.0002,2]
[329218643,1718185877744,-500.0,0.0002,2]
[329218644,1718185877754,-500.0,0.0002,2]
[329218645,1718185877765,-1124.45,0.0002,2]
[329218646,1718185877776,-543.6,0.0002,2]
[329218647,1718185877787,-500.0,0.0002,2]
[329218648,1718185877798,-3297.81,0.0002,2]
[329218649,1718185877810,-513.64,0.0002,2]
[329218650,1718185877822,-2891.44,0.0002,2]
[329218651,1718185877833,-500.0,0.0002,2]
[329218652,1718185877844,-769.71,0.0002,2]
[329218653,1718185877855,-733.82,0.0002,2]
[329218654,1718185877865,-2443.76,0.0002,2]
[329218655,1718185877876,-500.0,0.0002,2]
[329218656,1718185877888,-500.0,0.0002,2]
[329218657,1718185877899,-2001.79,0.0002,2]
[329218658,1718185877913,-2858.77,0.0002,2]
[329218659,1718185877924,-500.0,0.0002,2]
[329218660,1718185877937,-863.57,0.0002,2]
[329218661,1718185877948,-5348.23,0.0002,2]
[329218662,1718185877959,-500.0,0.0002,2]
[329218663,1718185877970,-500.0,0.0002,2]
[329218664,1718185877981,-500.0,0.0002,2]
[329218665,1718185877994,-885.96,0.0002,2]
[329218666,1718185878005,-500.0,0.0002,2]
[329218667,1718185878016,-500.0,0.0002,2]
[329218668,1718185878028,-597.64,0.0002,2]
[329218669,1718185878041,-500.0,0.0002,2]
[329218670,1718185878052,-1934.79,0.0002,2]
[329218671,1718185878064,-500.0,0.0002,2]
[329218672,1718185878076,-1159.83,0.0002,2]
[329218673,1718185878087,-537.98709864,0.0002,2]
[329218674,1718185878101,-500.0,0.0002,2]
[329218675,1718185878111,-500.0,0.0002,2]
[329218676,1718185878132,-994.91,0.0002,2]
[329218677,1718185878145,-670.09,0.0002,2]
[329218678,1718185878155,-264.34477774,0.0002,2]
[329218679,1718185878168,-3704.884,0.0002001,2]
[329218680,1718185878178,-226.74152349,0.000201,2]
[329218681,1718185878188,-1141.0,0.000201,2]
[329218682,1718185878198,-800.0,0.00020107,2]
[329218683,1718185878208,-500.0,0.00020136,2]
[329218684,1718185878218,-500.0,0.00020136,2]
[329218685,1718185878229,-500.0,0.00020136,2]
[329218686,1718185878241,-529.04,0.00020136,2]
[329218687,1718185878251,-500.0,0.00020136,2]
[329218688,1718185878262,-802.03,0.00020136,2]
[329218689,1718185878272,-500.0,0.00020136,2]
[329218690,1718185878282,-500.0,0.00020136,2]
[329218691,1718185878292,-500.0,0.00020136,2]
[329218692,1718185878302,-500.0,0.00020136,2]
[329218693,1718185878313,-500.0,0.00020136,2]
[329218694,1718185878324,-500.0,0.00020136,2]
[329218695,1718185878335,-192.68640493,0.00020136,2]
[329218696,1718185878345,-865.21,0.00020136,2]
[329218697,1718185878355,-500.0,0.00020136,2]
[329218698,1718185878365,-500.0,0.00020136,2]
[329218699,1718185878375,-616.47,0.00020136,2]
[329218700,1718185878385,-500.0,0.00020136,2]
[329218701,1718185878395,-524.35699443,0.00020136,2]
[329218702,1718185878408,-500.0,0.00020136,2]
[329218703,1718185878418,-500.0,0.00020136,2]
[329218704,1718185878428,-500.0,0.00020136,2]
[329218705,1718185878438,-500.0,0.00020136,2]
[329218706,1718185878448,-500.0,0.00020136,2]
[329218707,1718185878458,-827.08,0.00020136,2]
[329218708,1718185878469,-641.91,0.00020136,2]
[329218709,1718185878479,-500.0,0.00020136,2]
[329218710,1718185878490,-500.0,0.00020136,2]
[329218711,1718185878500,-500.0,0.00020136,2]
[329218712,1718185878510,-500.0,0.00020136,2]
[329218713,1718185878521,-500.0,0.00020136,2]
[329218714,1718185878531,-500.0,0.00020136,2]
[329218715,1718185878542,-831.92,0.00020136,2]
[329218716,1718185878553,-500.0,0.00020136,2]
[329218717,1718185878563,-500.0,0.00020136,2]
[329218718,1718185878574,-500.0,0.00020136,2]
[329218719,1718185878584,-500.0,0.00020136,2]
[329218720,1718185878596,-596.38,0.00020136,2]
[329218721,1718185878607,-500.0,0.00020136,2]
[329218722,1718185878617,-500.0,0.00020136,2]
[329218723,1718185878628,-500.0,0.00020136,2]
[329218724,1718185878638,-500.0,0.00020136,2]
[329218725,1718185878649,-500.0,0.00020136,2]
[329218726,1718185878664,-150.0,0.00020136,2]
[329218727,1718185878675,-500.0,0.00020136,2]
[329218728,1718185878685,-636.69,0.00020136,2]
[329218729,1718185878696,-500.0,0.00020136,2]
[329218730,1718185878707,-500.0,0.00020136,2]
[329218731,1718185878719,-550.81,0.00020136,2]
[329218732,1718185878730,-544.83,0.00020136,2]
[329218733,1718185878741,-500.0,0.00020136,2]
[329218734,1718185878751,-602.49879418,0.00020136,2]
[329218735,1718185878761,-627.87518911,0.00020136,2]
[329218736,1718185878772,-500.0,0.00020136,2]
[329218737,1718185878782,-500.0,0.00020136,2]
[329218738,1718185878793,-500.0,0.00020136,2]
[329218739,1718185878803,-500.0,0.00020136,2]
[329218740,1718185878813,-642.59,0.00020136,2]
[329218741,1718185878823,-500.0,0.00020136,2]
[329218742,1718185878833,-528.18,0.00020136,2]
[329218743,1718185878845,-500.0,0.00020136,2]
[329218744,1718185878856,-500.0,0.00020136,2]
[329218745,1718185878866,-500.0,0.00020136,2]
[329218746,1718185878877,-500.0,0.00020136,2]
[329218747,1718185878887,-500.0,0.00020136,2]
[329218748,1718185878899,-500.0,0.00020136,2]
[329218749,1718185878912,-500.0,0.00020136,2]
[329218750,1718185878922,-500.0,0.00020136,2]
[329218751,1718185878932,-500.0,0.00020136,2]
[329218752,1718185878943,-500.0,0.00020136,2]
[329218753,1718185878955,-500.0,0.00020136,2]
[329218754,1718185878967,-500.0,0.00020136,2]
[329218755,1718185878978,-261.18735912,0.00020136,2]
[329218756,1718185878991,-500.0,0.00020136,2]
[329218757,1718185879001,-500.0,0.00020136,2]
[329218758,1718185879011,-500.0,0.00020136,2]
[329218759,1718185879023,-500.0,0.00020136,2]
[329218760,1718185879033,-500.0,0.00020136,2]
[329218761,1718185879043,-500.0,0.00020136,2]
[329218762,1718185879053,-487.19255963,0.00020136,2]
[329218763,1718185879065,-500.0,0.00020136,2]
[329218764,1718185879076,-500.0,0.00020136,2]
[329218765,1718185879086,-500.0,0.00020136,2]
[329218766,1718185879106,-549.88,0.00020136,2]
[329218767,1718185879121,-500.0,0.00020136,2]
[329218768,1718185879132,-500.0,0.00020136,2]
[329218769,1718185879142,-500.0,0.00020136,2]
[329218770,1718185879153,-500.0,0.00020136,2]
[329218771,1718185879167,-500.0,0.00020136,2]
[329218772,1718185879177,-500.0,0.00020136,2]
[329218773,1718185879187,-500.0,0.00020136,2]
[329218774,1718185879198,-500.0,0.00020136,2]
[329218775,1718185879209,-500.0,0.00020136,2]
[329218776,1718185879220,-500.0,0.00020136,2]
[329218777,1718185879231,-616.7,0.00020136,2]
[329218778,1718185879241,-500.0,0.00020136,2]
[329218779,1718185879251,-769.59,0.00020136,2]
[329218780,1718185879261,-500.0,0.00020136,2]
[329218781,1718185879272,-500.0,0.00020136,2]
[329218782,1718185879282,-563.56,0.00020136,2]
[329218783,1718185879294,-500.0,0.00020136,2]
[329218784,1718185879304,-657.51,0.00020136,2]
[329218785,1718185879315,-1663.16,0.00020136,2]
[329218786,1718185879326,-500.0,0.00020136,2]
[329218787,1718185879336,-500.0,0.00020136,2]
[329218788,1718185879347,-4313.61,0.00020136,2]
[329218789,1718185879357,-844.37,0.00020136,2]
[329218790,1718185879368,-500.0,0.00020136,2]
[329218791,1718185879378,-1497.28,0.00020136,2]
[329218792,1718185879388,-532.58,0.00020136,2]
[329218793,1718185879398,-550.43,0.00020136,2]
[329218794,1718185879410,-500.0,0.00020136,2]
[329218795,1718185879421,-793.78,0.00020136,2]
[329218796,1718185879432,-500.0,0.00020136,2]
[329218797,1718185879443,-500.0,0.00020136,2]
[329218798,1718185879453,-552.52,0.00020136,2]
[329218799,1718185879465,-4109.6,0.00020136,2]
[329218800,1718185879476,-500.0,0.00020136,2]
[329218801,1718185879486,-1055.47,0.00020136,2]
[329218802,1718185879498,-897.13,0.00020136,2]
[329218803,1718185879509,-543.28,0.00020136,2]
[329218804,1718185879520,-1296.61,0.00020136,2]
[329218805,1718185879532,-500.0,0.00020136,2]
[329218806,1718185879543,-809.93,0.00020136,2]
[329218807,1718185879554,-424.37623621,0.00020136,2]
[329218808,1718185879566,-768.11,0.00020136,2]
[329218809,1718185879578,-6405.02,0.00020136,2]
[329218810,1718185879589,-2036.48,0.00020136,2]
[329218811,1718185879600,-500.0,0.00020136,2]
[329218812,1718185879612,-2920.36,0.00020136,2]
[329218813,1718185879623,-500.0,0.00020136,2]
[329218814,1718185879634,-2762.9,0.00020136,2]
[329218815,1718185879645,-500.0,0.00020136,2]
[329218816,1718185879657,-708.79,0.00020136,2]
[329218817,1718185879668,-500.0,0.00020136,2]
[329218818,1718185879679,-1021.06,0.00020136,2]
[329218819,1718185879690,-500.0,0.00020136,2]
[329218820,1718185879701,-500.0,0.00020136,2]
[329218821,1718185879711,-500.0,0.00020136,2]
[329218822,1718185879722,-500.0,0.00020136,2]
[329218823,1718185879732,-500.0,0.00020136,2]
[329218824,1718185879743,-1191.19,0.00020136,2]
[329218825,1718185879755,-500.0,0.00020136,2]
[329218826,1718185879765,-447.1505831,0.00020136,2]
[329218827,1718185879777,-528.06888346,0.00020136,2]
[329218828,1718185879791,-500.0,0.00020136,2]
[329218829,1718185879803,-500.0,0.00020136,2]
[329218830,1718185879813,-2756.75,0.00020136,2]
[329218831,1718185879824,-761.22,0.00020136,2]
[329218832,1718185879837,-743.07,0.00020136,2]
[329218833,1718185879849,-683.7,0.00020136,2]
[329218834,1718185879861,-515.05,0.00020136,2]
[329218835,1718185879873,-1876.75,0.00020136,2]
[329218836,1718185879885,-1604.18,0.00020136,2]
[329218837,1718185879897,-790.24,0.00020136,2]
[329218838,1718185879910,-500.0,0.00020136,2]
[329218839,1718185879922,-998.7,0.00020136,2]
[329218840,1718185879933,-500.0,0.00020136,2]
[329218841,1718185879945,-500.0,0.00020136,2]
[329218842,1718185879956,-975.94,0.00020136,2]
[329218843,1718185879968,-500.0,0.00020136,2]
[329218844,1718185879979,-798.24,0.00020136,2]
[329218845,1718185879992,-611.52,0.00020136,2]
[329218846,1718185880004,-875.83,0.00020136,2]
[329218847,1718185880016,-833.49,0.00020136,2]
[329218848,1718185880028,-500.0,0.00020136,2]
[329218849,1718185880040,-500.0,0.00020136,2]
[329218850,1718185880052,-1061.9,0.00020136,2]
[329218851,1718185880064,-638.1,0.00020136,2]
[329218852,1718185880079,-609.2,0.00020136,2]
[329218853,1718185880112,-500.0,0.00020136,2]
[329218854,1718185880124,-428.44106026,0.00020136,2]
[329218855,1718185880136,-500.0,0.00020136,2]
[329218856,1718185880148,-617.77,0.00020136,2]
[329218857,1718185880159,-566.19,0.00020136,2]
[329218858,1718185880170,-500.0,0.00020136,2]
[329218859,1718185880181,-2086.81,0.00020136,2]
[329218860,1718185880193,-500.0,0.00020136,2]
[329218861,1718185880205,-587.52,0.00020136,2]
[329218862,1718185880216,-2541.52,0.00020136,2]
[329218863,1718185880226,-840.54,0.00020136,2]
[329218864,1718185880237,-500.0,0.00020136,2]
[329218865,1718185880248,-500.0,0.00020136,2]
[329218866,1718185880260,-861.93,0.00020136,2]
[329218867,1718185880271,-653.36,0.00020136,2]
[329218868,1718185880282,-1513.9,0.00020136,2]
[329218869,1718185880293,-1430.79,0.00020136,2]
[329218870,1718185880304,-500.0,0.00020136,2]
[329218871,1718185880315,-1116.87,0.00020136,2]
[329218872,1718185880327,-500.0,0.00020136,2]
[329218873,1718185880338,-1680.63,0.00020136,2]
[329218874,1718185880349,-2401.2,0.00020136,2]
[329218875,1718185880360,-500.0,0.00020136,2]
[329218876,1718185880370,-500.0,0.00020136,2]
[329218877,1718185880381,-500.0,0.00020136,2]
[329218878,1718185880392,-562.19,0.00020136,2]
[329218879,1718185880403,-1223.41,0.00020136,2]
[329218880,1718185880414,-982.45,0.00020136,2]
[329218881,1718185880425,-1057.64,0.00020136,2]
[329218882,1718185880435,-500.0,0.00020136,2]
[329218883,1718185880446,-807.87,0.00020136,2]
[329218884,1718185880457,-500.0,0.00020136,2]
[329218885,1718185880468,-1266.87,0.00020136,2]
[329218886,1718185880483,-714.41,0.00020136,2]
[329218887,1718185880494,-500.0,0.00020136,2]
[329218888,1718185880504,-1245.17,0.00020136,2]
[329218889,1718185880515,-624.57,0.00020136,2]
[329218890,1718185880525,-500.0,0.00020136,2]
[329218891,1718185880536,-500.0,0.00020136,2]
[329218892,1718185880547,-1411.92,0.00020136,2]
[329218893,1718185880559,-1034.01,0.00020136,2]
[329218894,1718185880570,-507.19,0.00020136,2]
[329218895,1718185880581,-632.86,0.00020136,2]
[329218896,1718185880592,-769.32,0.00020136,2]
[329218897,1718185880602,-1980.14,0.00020136,2]
[329218898,1718185880613,-855.8,0.00020136,2]
[329218899,1718185880623,-1673.90532647,0.00020136,2]
[329218900,1718185881800,-1171.88467353,0.00020136,2]
[329218901,1718185881811,-491.37039329,0.00020136,2]
[329218902,1718185881822,-658.23,0.00020136,2]
[329218903,1718185881835,-500.0,0.00020136,2]
[329218904,1718185881846,-500.0,0.00020136,2]
[329218905,1718185881858,-500.0,0.00020136,2]
[329218906,1718185881871,-856.59,0.00020136,2]
[329218907,1718185881882,-906.07,0.00020136,2]
[329218908,1718185881893,-736.59,0.00020136,2]
[329218909,1718185881903,-771.76,0.00020136,2]
[329218910,1718185881916,-1448.82,0.00020136,2]
[329218911,1718185881927,-654.87,0.00020136,2]
[329218912,1718185881938,-625.77392833,0.00020136,2]
[329218913,1718185881948,-500.0,0.00020136,2]
[329218914,1718185881958,-1124.45,0.00020136,2]
[329218915,1718185881970,-543.6,0.00020136,2]
[329218916,1718185881981,-500.0,0.00020136,2]
[329218917,1718185881997,-3297.81,0.00020136,2]
[329218918,1718185882008,-513.64,0.00020136,2]
[329218919,1718185882019,-2891.44,0.00020136,2]
[329218920,1718185882031,-500.0,0.00020136,2]
[329218921,1718185882042,-769.71,0.00020136,2]
[329218922,1718185882053,-733.82,0.00020136,2]
[329218923,1718185882065,-2443.76,0.00020136,2]
[329218924,1718185882076,-610.97145848,0.00020136,2]
[329218925,1718185882095,-500.0,0.00020136,2]
[329218926,1718185882108,-2001.79,0.00020136,2]
[329218927,1718185882127,-2858.77,0.00020136,2]
[329218928,1718185882146,-500.0,0.00020136,2]
[329218929,1718185882158,-863.57,0.00020136,2]
[329218930,1718185882172,-5348.23,0.00020136,2]
[329218931,1718185882184,-546.31552434,0.00020136,2]
[329218932,1718185882197,-500.0,0.00020136,2]
[329218933,1718185882208,-500.0,0.00020136,2]
[329218934,1718185882220,-885.96,0.00020136,2]
[329218935,1718185882232,-337.93686069,0.00020136,2]
[329218936,1718185882243,-500.0,0.00020136,2]
[329218937,1718185882254,-597.64,0.00020136,2]
[329218938,1718185882265,-500.0,0.00020136,2]
[329218939,1718185882277,-1934.79,0.00020136,2]
[329218940,1718185882288,-500.0,0.00020136,2]
[329218941,1718185882299,-1159.83,0.00020136,2]
[329218942,1718185882310,-500.0,0.00020136,2]
[329218943,1718185882320,-500.0,0.00020136,2]
[329218944,1718185882331,-994.91,0.00020136,2]
[329218945,1718185882341,-670.09,0.00020136,2]
[329218946,1718185882354,-200.0,0.00020179,2]
[329218947,1718185882366,-500.0,0.00020179,2]
[329218948,1718185882376,-200.0,0.00020179,2]
[329218949,1718185882386,-500.0,0.00020273,2]
[329218950,1718185882397,-500.0,0.00020273,2]
[329218951,1718185882408,-500.0,0.00020273,2]
[329218952,1718185882419,-529.04,0.00020273,2]
[329218953,1718185882430,-500.0,0.00020273,2]
[329218954,1718185882440,-802.03,0.00020273,2]
[329218955,1718185882450,-500.0,0.00020273,2]
[329218956,1718185882461,-500.0,0.00020273,2]
[329218957,1718185882472,-500.0,0.00020273,2]
[329218958,1718185882482,-500.0,0.00020273,2]
[329218959,1718185882493,-500.0,0.00020273,2]
[329218960,1718185882507,-500.0,0.00020273,2]
[329218961,1718185882517,-865.21,0.00020273,2]
[329218962,1718185882528,-500.0,0.00020273,2]
[329218963,1718185882745,-500.0,0.00020273,2]
[329218964,1718185882755,-616.47,0.00020273,2]
[329218965,1718185882766,-500.0,0.00020273,2]
[329218966,1718185882776,-500.0,0.00020273,2]
[329218967,1718185882787,-500.0,0.00020273,2]
[329218968,1718185882797,-500.0,0.00020273,2]
[329218969,1718185882807,-500.0,0.00020273,2]
[329218970,1718185882817,-500.0,0.00020273,2]
[329218971,1718185882828,-827.08,0.00020273,2]
[329218972,1718185882838,-641.91,0.00020273,2]
[329218973,1718185882849,-500.0,0.00020273,2]
[329218974,1718185882859,-500.0,0.00020273,2]
[329218975,1718185882869,-500.0,0.00020273,2]
[329218976,1718185882880,-500.0,0.00020273,2]
[329218977,1718185882890,-500.0,0.00020273,2]
[329218978,1718185882900,-500.0,0.00020273,2]
[329218979,1718185882911,-831.92,0.00020273,2]
[329218980,1718185882921,-500.0,0.00020273,2]
[329218981,1718185882931,-500.0,0.00020273,2]
[329218982,1718185882940,-500.0,0.00020273,2]
[329218983,1718185882951,-500.0,0.00020273,2]
[329218984,1718185882960,-596.38,0.00020273,2]
[329218985,1718185882970,-281.36620305,0.00020273,2]
[329218986,1718185882981,-500.0,0.00020273,2]
[329218987,1718185882991,-500.0,0.00020273,2]
[329218988,1718185883006,-500.0,0.00020273,2]
[329218989,1718185883016,-500.0,0.00020273,2]
[329218990,1718185883027,-150.0,0.00020273,2]
[329218991,1718185883037,-500.0,0.00020273,2]
[329218992,1718185883047,-636.69,0.00020273,2]
[329218993,1718185883057,-500.0,0.00020273,2]
[329218994,1718185883067,-500.0,0.00020273,2]
[329218995,1718185883079,-550.81,0.00020273,2]
[329218996,1718185883098,-544.83,0.00020273,2]
[329218997,1718185883119,-370.95808259,0.00020273,2]
[329218998,1718185883130,-500.0,0.00020273,2]
[329218999,1718185883140,-500.0,0.00020273,2]
[329219000,1718185883151,-500.0,0.00020273,2]
[329219001,1718185883161,-500.0,0.00020273,2]
[329219002,1718185883172,-642.59,0.00020273,2]
[329219003,1718185883183,-500.0,0.00020273,2]
[329219004,1718185883193,-528.18,0.00020273,2]
[329219005,1718185883204,-163.22397598,0.00020273,2]
[329219006,1718185883215,-500.0,0.00020273,2]
[329219007,1718185883226,-500.0,0.00020273,2]
[329219008,1718185883236,-500.0,0.00020273,2]
[329219009,1718185883247,-645.05183504,0.00020273,2]
[329219010,1718185883257,-500.0,0.00020273,2]
[329219011,1718185883268,-500.0,0.00020273,2]
[329219012,1718185883279,-500.0,0.00020273,2]
[329219013,1718185883289,-500.0,0.00020273,2]
[329219014,1718185883300,-500.0,0.00020273,2]
[329219015,1718185883312,-500.0,0.00020273,2]
[329219016,1718185883322,-500.0,0.00020273,2]
[329219017,1718185883332,-571.07256753,0.00020273,2]
[329219018,1718185883343,-500.0,0.00020273,2]
[329219019,1718185883354,-500.0,0.00020273,2]
[329219020,1718185883365,-500.0,0.00020273,2]
[329219021,1718185883375,-529.6042184,0.00020273,2]
[329219022,1718185883386,-500.0,0.00020273,2]
[329219023,1718185883396,-500.0,0.00020273,2]
[329219024,1718185883407,-500.0,0.00020273,2]
[329219025,1718185883419,-500.0,0.00020273,2]
[329219026,1718185883429,-549.88,0.00020273,2]
[329219027,1718185883441,-500.0,0.00020273,2]
[329219028,1718185883453,-500.0,0.00020273,2]
[329219029,1718185883464,-500.0,0.00020273,2]
[329219030,1718185883474,-500.0,0.00020273,2]
[329219031,1718185883485,-500.0,0.00020273,2]
[329219032,1718185883495,-500.0,0.00020273,2]
[329219033,1718185883506,-500.0,0.00020273,2]
[329219034,1718185883516,-500.0,0.00020273,2]
[329219035,1718185883528,-500.0,0.00020273,2]
[329219036,1718185883540,-334.99912009,0.00020273,2]
[329219037,1718185883551,-616.7,0.00020273,2]
[329219038,1718185883562,-500.0,0.00020273,2]
[329219039,1718185883573,-769.59,0.00020273,2]
[329219040,1718185883583,-500.0,0.00020273,2]
[329219041,1718185883594,-500.0,0.00020273,2]
[329219042,1718185883606,-563.56,0.00020273,2]
[329219043,1718185883618,-500.0,0.00020273,2]
[329219044,1718185883628,-657.51,0.00020273,2]
[329219045,1718185883639,-1663.16,0.00020273,2]
[329219046,1718185883656,-500.0,0.00020273,2]
[329219047,1718185883674,-500.0,0.00020273,2]
[329219048,1718185883685,-4313.61,0.00020273,2]
[329219049,1718185883695,-844.37,0.00020273,2]
[329219050,1718185883706,-500.0,0.00020273,2]
[329219051,1718185883718,-1497.28,0.00020273,2]
[329219052,1718185883729,-532.58,0.00020273,2]
[329219053,1718185883740,-550.43,0.00020273,2]
[329219054,1718185883751,-500.0,0.00020273,2]
[329219055,1718185883762,-793.78,0.00020273,2]
[329219056,1718185883773,-500.0,0.00020273,2]
[329219057,1718185883784,-500.0,0.00020273,2]
[329219058,1718185883795,-552.52,0.00020273,2]
[329219059,1718185883806,-4109.6,0.00020273,2]
[329219060,1718185883817,-500.0,0.00020273,2]
[329219061,1718185883828,-1055.47,0.00020273,2]
[329219062,1718185883840,-897.13,0.00020273,2]
[329219063,1718185883850,-543.28,0.00020273,2]
[329219064,1718185883861,-1296.61,0.00020273,2]
[329219065,1718185883872,-500.0,0.00020273,2]
[329219066,1718185883883,-768.11,0.00020273,2]
[329219067,1718185883895,-809.93,0.00020273,2]
[329219068,1718185883905,-6405.02,0.00020273,2]
[329219069,1718185883917,-2036.48,0.00020273,2]
[329219070,1718185883928,-500.0,0.00020273,2]
[329219071,1718185883939,-2920.36,0.00020273,2]
[329219072,1718185883950,-500.0,0.00020273,2]
[329219073,1718185883962,-2762.9,0.00020273,2]
[329219074,1718185883972,-500.0,0.00020273,2]
[329219075,1718185883982,-708.79,0.00020273,2]
[329219076,1718185883996,-500.0,0.00020273,2]
[329219077,1718185884006,-1021.06,0.00020273,2]
[329219078,1718185884017,-500.0,0.00020273,2]
[329219079,1718185884028,-500.0,0.00020273,2]
[329219080,1718185884038,-500.0,0.00020273,2]
[329219081,1718185884049,-500.0,0.00020273,2]
[329219082,1718185884060,-500.0,0.00020273,2]
[329219083,1718185884073,-1191.19,0.00020273,2]
[329219084,1718185884084,-500.0,0.00020273,2]
[329219085,1718185884114,-500.0,0.00020273,2]
[329219086,1718185884125,-500.0,0.00020273,2]
[329219087,1718185884136,-2756.75,0.00020273,2]
[329219088,1718185884147,-761.22,0.00020273,2]
[329219089,1718185884158,-743.07,0.00020273,2]
[329219090,1718185884171,-683.7,0.00020273,2]
[329219091,1718185884182,-515.05,0.00020273,2]
[329219092,1718185884193,-1876.75,0.00020273,2]
[329219093,1718185884205,-1604.18,0.00020273,2]
[329219094,1718185884216,-790.24,0.00020273,2]